bitfinex/quotes_SOLUSD_20241028
["timestamp","ask_amount","ask_price","bid_price","bid_amount"]
[1730137083249,28.03532756,175.69,175.64,28.03532756]
[1730137083430,5.6911,175.71,175.68,28.03532756]
[1730137084132,43.27722756,175.74,175.69,28.03532756]
[1730137084328,28.03532756,175.75,175.69,28.03532756]
[1730137084555,28.03532756,175.78,175.73,28.03532756]
[1730137084754,5.6895,175.77,175.74,28.03532756]
[1730137085053,5.689,175.78,175.74,28.03532756]
[1730137086438,5.689,175.78,175.73,28.03532756]
[1730137086945,5.689,175.78,175.74,28.03532756]
[1730137087349,5.689,175.78,175.75,28.03532756]
[1730137088053,25.6882,175.8,175.75,28.03532756]
[1730137088351,5.6882,175.8,175.75,28.03532756]
[1730137088563,5.6879,175.81,175.77,28.03532756]
[1730137088732,5.6879,175.81,175.76,28.03532756]
[1730137089744,28.03532756,175.8,175.75,28.03532756]
[1730137090245,28.03532756,175.77,175.72,28.88911767]
[1730137090447,70.0,175.79,175.73,1.4240748]
[1730137090448,28.03532756,175.76,175.73,1.4240748]
[1730137090752,28.03532756,175.74,175.72,0.85379011]
[1730137091063,48.03532756,175.76,175.72,0.85379011]
[1730137091227,96.032,175.81,175.73,28.03532756]
[1730137091654,5.6886,175.79,175.73,28.03532756]
[1730137091849,5.6886,175.79,175.72,0.85379011]
[1730137091850,28.03532756,175.78,175.72,28.88911767]
[1730137092154,28.03532756,175.78,175.73,28.03532756]
[1730137092745,5.6892,175.77,175.73,28.03532756]
[1730137093126,5.6892,175.77,175.72,28.03532756]
[1730137093357,5.6892,175.77,175.73,28.03532756]
[1730137094460,33.72452756,175.77,175.72,28.03532756]
[1730137094628,5.6892,175.77,175.72,28.03532756]
[1730137094829,5.6892,175.77,175.73,28.03532756]
[1730137095033,5.6892,175.77,175.72,28.03532756]
[1730137095540,5.6892,175.77,175.73,28.03532756]
[1730137095934,5.6889,175.78,175.73,28.03532756]
[1730137096246,33.72422756,175.78,175.72,28.03532756]
[1730137096442,28.03532756,175.76,175.7,28.03532756]
[1730137096660,28.03532756,175.74,175.68,28.88934435]
[1730137096840,5.6889,175.78,175.73,28.03532756]
[1730137097043,5.6889,175.78,175.74,28.03532756]
[1730137097755,5.6889,175.78,175.73,28.03532756]
[1730137097956,28.03532756,175.75,175.69,28.03532756]
[1730137098270,28.03532756,175.73,175.68,0.85401679]
[1730137098431,17.51517357,175.73,175.69,1.42440534]
[1730137098766,17.51517357,175.72,175.68,2.27842213]
[1730137099146,17.51517357,175.71,175.68,1.42440534]
[1730137099447,17.51517357,175.69,175.66,1.42440534]
[1730137099652,17.51517357,175.69,175.67,1.42440534]
[1730137099847,17.51517357,175.69,175.64,1.42440534]
[1730137100156,5.6921,175.68,175.65,1.42440534]
[1730137100466,5.6921,175.68,175.59,32.94467357]
[1730137100467,33.73180261,175.68,175.62,28.03970261]
[1730137100691,33.73180261,175.68,175.63,1.42469683]
[1730137100959,33.73180261,175.68,175.64,1.42469683]
[1730137100960,28.03970261,175.67,175.64,1.42469683]
[1730137101152,28.03970261,175.67,175.65,1.42469683]
[1730137101349,33.73240261,175.67,175.62,1.42469683]
[1730137101535,33.73240261,175.67,175.61,28.03970261]
[1730137101732,5.6927,175.67,175.62,28.03970261]
[1730137103258,28.03970261,175.64,175.58,28.03970261]
[1730137103642,28.03970261,175.64,175.55,16.5786]
[1730137103643,28.03970261,175.66,175.61,28.03970261]
[1730137103858,5.6927,175.67,175.62,28.03970261]
[1730137104157,5.6927,175.67,175.63,28.03970261]
[1730137104346,14.2288,175.7,175.58,0.85450521]
[1730137104347,28.03970261,175.7,175.65,28.03970261]
[1730137104557,33.73120261,175.7,175.65,28.03970261]
[1730137104863,5.6915,175.7,175.65,28.03970261]
[1730137105172,28.03970261,175.69,175.63,28.03970261]
[1730137105381,28.03970261,175.67,175.61,28.03970261]
[1730137106583,28.03970261,175.66,175.61,28.03970261]
[1730137106873,28.03970261,175.67,175.61,28.03970261]
[1730137107077,28.03970261,175.66,175.61,28.03970261]
[1730137107380,5.6921,175.68,175.62,28.03970261]
[1730137107381,28.03970261,175.67,175.62,28.03970261]
[1730137107581,28.03970261,175.7,175.64,28.03970261]
[1730137107766,28.03970261,175.68,175.62,28.03970261]
[1730137108690,5.6924,175.67,175.62,28.03970261]
[1730137111090,5.6924,175.67,175.63,28.03970261]
[1730137111971,28.03970261,175.69,175.63,28.03970261]
[1730137112180,5.6921,175.68,175.63,28.03970261]
[1730137113072,33.73180261,175.68,175.62,28.03970261]
[1730137113381,28.03970261,175.67,175.62,28.03970261]
[1730137114389,28.03970261,175.68,175.63,28.03970261]
[1730137114569,28.03970261,175.69,175.64,28.03970261]
[1730137115486,28.03970261,175.69,175.63,28.03970261]
[1730137115690,28.03970261,175.7,175.64,28.03970261]
[1730137115986,28.03970261,175.7,175.65,28.03970261]
[1730137116287,28.03970261,175.71,175.65,28.03970261]
[1730137116792,53.72990261,175.74,175.68,28.03970261]
[1730137116971,53.72990261,175.74,175.6,22.7933]
[1730137116972,28.03970261,175.69,175.62,28.03970261]
[1730137117180,28.03970261,175.66,175.61,28.03970261]
[1730137117673,28.03970261,175.66,175.6,22.7933]
[1730137117674,28.03970261,175.66,175.6,50.83300261]
[1730137117983,28.03970261,175.67,175.61,28.03970261]
[1730137118369,28.03970261,175.67,175.62,28.03970261]
[1730137119290,28.03970261,175.69,175.64,28.03970261]
[1730137119471,33.73150261,175.69,175.64,28.03970261]
[1730137120795,17.52576347,175.68,175.62,17.52576347]
[1730137121092,23.21756347,175.69,175.63,17.52576347]
[1730137121267,23.21756347,175.69,175.64,17.52576347]
[1730137121464,5.6918,175.69,175.64,17.52576347]
[1730137121697,23.21756347,175.69,175.64,17.52576347]
[1730137122470,23.21756347,175.69,175.63,17.52576347]
[1730137123276,17.52576347,175.66,175.61,17.52576347]
[1730137123591,23.21906347,175.65,175.6,17.52576347]
[1730137125288,5.6933,175.65,175.61,17.52576347]
[1730137126272,23.21856347,175.66,175.61,17.52576347]
[1730137126671,17.52576347,175.65,175.6,17.52576347]
[1730137127873,17.52576347,175.64,175.59,0.85443075]
[1730137128067,17.52576347,175.63,175.59,0.85443075]
[1730137128289,23.21976347,175.63,175.59,0.85443075]
[1730137130406,5.694,175.63,175.59,0.85443075]
[1730137130997,17.52576347,175.67,175.61,17.52576347]
[1730137131297,87.52576347,175.68,175.62,17.52576347]
[1730137131674,87.52576347,175.68,175.59,0.85443075]
[1730137131675,87.52576347,175.68,175.63,17.52576347]
[1730137131878,70.0,175.6,175.52,23.47565753]
[1730137132075,17.52576347,175.56,175.5,17.52576347]
[1730137132271,17.52576347,175.56,175.46,5.95244554]
[1730137132495,23.22146347,175.57,175.51,17.52576347]
[1730137133497,17.52576347,175.56,175.5,18.38066506]
[1730137134204,23.22196347,175.56,175.5,18.38066506]
[1730137134698,5.6962,175.56,175.51,17.52576347]
[1730137136600,17.52576347,175.56,175.51,17.52576347]
[1730137137195,17.52576347,175.56,175.5,18.38066506]
[1730137138505,23.22186347,175.56,175.51,17.52576347]
[1730137139802,17.52576347,175.58,175.53,17.52576347]
[1730137140005,17.52576347,175.6,175.54,17.52576347]
[1730137140308,5.6944,175.61,175.55,17.52576347]
[1730137140309,23.22016347,175.61,175.55,17.52576347]
[1730137140498,17.52576347,175.6,175.55,17.52576347]
[1730137140802,17.52576347,175.56,175.51,17.52576347]
[1730137140988,17.52576347,175.55,175.5,0.85490159]
[1730137141397,17.52576347,175.54,175.5,0.85490159]
[1730137141718,17.52576347,175.55,175.5,18.38066506]
[1730137141897,5.695,175.59,175.51,17.52576347]
[1730137142212,17.52576347,175.57,175.51,17.52576347]
[1730137142601,5.696,175.56,175.51,17.52576347]
[1730137143303,5.695,175.59,175.53,17.52576347]
[1730137143501,5.695,175.59,175.5,0.85490159]
[1730137143502,5.695,175.59,175.54,17.52576347]
[1730137143712,5.6949,175.6,175.56,17.52576347]
[1730137144004,23.22066347,175.6,175.55,17.52576347]
[1730137144507,17.52576347,175.59,175.54,17.52576347]
[1730137144808,17.52576347,175.56,175.51,16.5511]
[1730137144987,17.52576347,175.55,175.5,18.38066506]
[1730137145308,17.52576347,175.54,175.5,0.85490159]
[1730137145684,17.52576347,175.53,175.5,0.85490159]
[1730137146001,17.52576347,175.51,175.5,0.85490159]
[1730137146898,23.22336347,175.51,175.5,0.85490159]
[1730137147606,17.52576347,175.54,175.5,0.85490159]
[1730137147911,5.6963,175.55,175.52,17.52576347]
[1730137148409,5.6957,175.57,175.53,17.52576347]
[1730137148604,5.6957,175.57,175.52,17.52576347]
[1730137149995,5.6957,175.57,175.53,17.52576347]
[1730137150589,23.22016347,175.61,175.56,17.52576347]
[1730137150797,5.6944,175.61,175.56,17.52576347]
[1730137152306,23.22016347,175.61,175.55,17.52576347]
[1730137153183,17.52576347,175.58,175.53,17.52576347]
[1730137153390,70.0,175.62,175.53,17.52576347]
[1730137153391,5.6957,175.57,175.53,17.52576347]
[1730137153708,5.6957,175.57,175.54,17.52576347]
[1730137153917,5.6944,175.62,175.56,17.52576347]
[1730137154213,5.6944,175.62,175.58,17.52576347]
[1730137154382,5.6944,175.62,175.57,17.52576347]
[1730137154789,23.22016347,175.62,175.56,17.52576347]
[1730137155907,5.6944,175.62,175.57,17.52576347]
[1730137156210,17.52576347,175.61,175.56,17.52576347]
[1730137156608,17.52576347,175.57,175.53,0.82448095]
[1730137156817,17.52576347,175.56,175.53,0.82448095]
[1730137157394,5.6963,175.55,175.53,0.82448095]
[1730137158287,17.52576347,175.58,175.53,0.82448095]
[1730137158499,5.6954,175.58,175.53,18.35024442]
[1730137160221,17.52576347,175.57,175.53,0.82448095]
[1730137160397,17.52576347,175.56,175.53,0.82448095]
[1730137161801,17.52576347,175.55,175.53,0.82448095]
[1730137162402,23.22246347,175.54,175.47,17.52576347]
[1730137162714,17.52576347,175.53,175.47,17.52576347]
[1730137163104,17.52576347,175.52,175.47,17.52576347]
[1730137163729,17.52576347,175.52,175.46,33.86426347]
[1730137164426,23.22336347,175.52,175.46,33.86426347]
[1730137164922,5.6976,175.52,175.48,17.52576347]
[1730137165299,5.6976,175.52,175.47,17.52576347]
[1730137165515,5.6964,175.55,175.51,17.52576347]
[1730137165699,23.22176347,175.57,175.51,17.52576347]
[1730137166021,23.22176347,175.57,175.52,17.52576347]
[1730137166197,23.22176347,175.57,175.51,17.52576347]
[1730137166398,23.22176347,175.57,175.5,17.52576347]
[1730137166399,17.52576347,175.55,175.5,17.52576347]
[1730137166599,17.52576347,175.56,175.5,17.52576347]
[1730137166821,17.52576347,175.56,175.51,17.52576347]
[1730137167029,23.22176347,175.57,175.51,17.52576347]
[1730137167325,5.696,175.57,175.53,17.52576347]
[1730137167521,5.696,175.57,175.52,17.52576347]
[1730137168795,5.696,175.57,175.53,17.52576347]
[1730137169001,17.52576347,175.62,175.56,17.52576347]
[1730137169201,5.6941,175.62,175.57,17.52576347]
[1730137170324,76.0502,175.65,175.58,17.52576347]
[1730137170325,23.21916347,175.64,175.58,17.52576347]
[1730137171523,5.6934,175.64,175.59,17.52576347]
[1730137172116,5.6929,175.66,175.62,17.52576347]
[1730137172314,5.6929,175.66,175.63,17.52576347]
[1730137173111,5.6915,175.7,175.65,17.52576347]
[1730137173307,23.21726347,175.7,175.65,17.52576347]
[1730137173508,23.21726347,175.7,175.64,17.52576347]
[1730137173911,23.21726347,175.7,175.6,15.8807]
[1730137173912,5.6915,175.7,175.67,17.52576347]
[1730137174437,5.6915,175.7,175.66,17.52576347]
[1730137174730,87.52576347,175.74,175.69,17.52576347]
[1730137174910,17.52576347,175.75,175.7,17.52576347]
[1730137175233,17.52576347,175.75,175.63,0.77915321]
[1730137175234,34.07176347,175.77,175.71,17.52576347]
[1730137175530,23.21466347,175.78,175.72,17.52576347]
[1730137175823,5.6889,175.78,175.73,17.52576347]
[1730137176028,17.52576347,175.77,175.71,17.52576347]
[1730137176242,17.52576347,175.75,175.69,17.52576347]
[1730137176527,28.0173964,175.75,175.69,28.0173964]
[1730137176734,5.6902,175.74,175.69,28.0173964]
[1730137176921,28.0173964,175.7,175.61,15.8802]
[1730137177223,28.0173964,175.69,175.64,28.0173964]
[1730137177435,28.0173964,175.7,175.64,28.0173964]
[1730137177619,28.0173964,175.7,175.64,28.796485]
[1730137178112,28.0173964,175.69,175.64,0.7790886]
[1730137178724,28.0173964,175.69,175.64,28.796485]
[1730137179131,28.0173964,175.73,175.68,28.0173964]
[1730137179534,28.0173964,175.75,175.69,28.0173964]
[1730137179711,28.0173964,175.75,175.7,28.0173964]
[1730137180025,33.7068964,175.76,175.7,28.0173964]
[1730137181432,28.0173964,175.75,175.7,28.0173964]
[1730137181937,28.0173964,175.73,175.68,28.0173964]
[1730137182508,28.0173964,175.74,175.68,28.0173964]
[1730137182709,28.0173964,175.74,175.69,28.0173964]
[1730137183443,5.6905,175.73,175.69,28.0173964]
[1730137184343,28.0173964,175.76,175.7,28.0173964]
[1730137184522,28.0173964,175.75,175.7,28.0173964]
[1730137185517,5.6902,175.74,175.7,28.0173964]
[1730137186232,33.7075964,175.74,175.69,28.0173964]
[1730137189213,33.7075964,175.74,175.68,28.0173964]
[1730137189414,28.0173964,175.7,175.66,0.77900109]
[1730137189711,28.0173964,175.68,175.66,0.77900109]
[1730137189913,28.0173964,175.69,175.66,0.77900109]
[1730137190411,28.0173964,175.69,175.64,28.0173964]
[1730137190814,43.8414964,175.73,175.68,28.0173964]
[1730137191115,28.0173964,175.73,175.68,28.0173964]
[1730137191325,28.0173964,175.73,175.67,28.0173964]
[1730137191527,5.6908,175.72,175.67,28.0173964]
[1730137192943,28.0173964,175.71,175.65,28.0173964]
[1730137193116,28.0173964,175.69,175.64,28.79649575]
[1730137193825,28.0173964,175.7,175.64,28.79649575]
[1730137194143,5.6915,175.7,175.66,28.0173964]
[1730137194313,5.6915,175.7,175.64,0.77909935]
[1730137194530,33.7088964,175.7,175.64,28.79649575]
[1730137195035,28.0173964,175.72,175.66,28.0173964]
[1730137195236,28.0173964,175.73,175.67,28.0173964]
[1730137195935,28.0173964,175.72,175.67,28.0173964]
[1730137196257,5.6911,175.71,175.66,28.0173964]
[1730137196749,5.6911,175.71,175.67,28.0173964]
[1730137197050,5.6911,175.71,175.66,28.0173964]
[1730137197531,5.6911,175.71,175.67,28.0173964]
[1730137198736,33.7072964,175.75,175.69,28.0173964]
[1730137198936,33.7072964,175.75,175.7,28.0173964]
[1730137199267,33.7072964,175.75,175.69,28.0173964]
[1730137199426,28.0173964,175.74,175.69,28.0173964]
[1730137199757,28.0173964,175.71,175.66,28.0173964]
[1730137200354,28.0173964,175.73,175.67,28.0173964]
[1730137200532,17.51326502,175.73,175.68,17.51326502]
[1730137200733,23.20406502,175.72,175.67,17.51326502]
[1730137201550,17.51326502,175.68,175.64,0.77909935]
[1730137202239,17.51326502,175.67,175.64,0.77909935]
[1730137202431,17.51326502,175.68,175.64,0.77909935]
[1730137202633,5.6934,175.64,175.59,17.51326502]
[1730137202838,5.6934,175.64,175.58,17.51326502]
[1730137203138,5.6934,175.64,175.59,17.51326502]
[1730137203734,5.6934,175.64,175.59,18.30234066]
[1730137203952,17.51326502,175.68,175.62,17.51326502]
[1730137204152,17.51326502,175.68,175.59,0.78907564]
[1730137204153,23.20506502,175.69,175.64,17.51326502]
[1730137204643,23.20506502,175.69,175.63,17.51326502]
[1730137205133,17.51326502,175.68,175.62,17.51326502]
[1730137205335,17.51326502,175.68,175.59,0.78907564]
[1730137205336,17.51326502,175.64,175.59,18.30234066]
[1730137205847,17.51326502,175.63,175.59,0.78907564]
[1730137206052,17.51326502,175.64,175.59,0.78907564]
[1730137206250,17.51326502,175.67,175.61,17.51326502]
[1730137207758,5.6928,175.66,175.61,17.51326502]
[1730137208460,23.20576502,175.67,175.61,17.51326502]
[1730137208641,5.6925,175.67,175.62,17.51326502]
[1730137209472,23.20546502,175.68,175.62,17.51326502]
[1730137209844,17.51326502,175.7,175.64,17.51326502]
[1730137210041,17.51326502,175.69,175.63,17.51326502]
[1730137210443,5.6915,175.7,175.65,17.51326502]
[1730137210660,5.6912,175.71,175.67,17.51326502]
[1730137211162,5.6905,175.73,175.68,17.51326502]
[1730137211362,17.51326502,175.69,175.62,6.3703]
[1730137211560,17.51326502,175.67,175.62,17.51326502]
[1730137211866,23.20596502,175.67,175.61,17.51326502]
[1730137212639,17.51326502,175.65,175.59,17.51326502]
[1730137212953,17.51326502,175.63,175.58,0.78909215]
[1730137214062,17.51326502,175.62,175.58,0.78909215]
[1730137214265,17.51326502,175.6,175.58,0.78909215]
[1730137214470,17.51326502,175.61,175.58,0.78909215]
[1730137214966,17.51326502,175.6,175.58,0.78909215]
[1730137216453,17.51326502,175.59,175.5,23.58706502]
[1730137216642,17.51326502,175.56,175.5,17.51326502]
[1730137216963,11.8867,175.6,175.49,15.4096]
[1730137217151,17.51326502,175.54,175.48,17.51326502]
[1730137217343,17.51326502,175.54,175.49,0.78950624]
[1730137217747,23.20996502,175.54,175.49,0.78950624]
[1730137217947,17.51326502,175.55,175.49,18.30277126]
[1730137218172,17.51326502,175.55,175.5,17.51326502]
[1730137218463,17.51326502,175.55,175.49,0.78950624]
[1730137218464,17.51326502,175.57,175.51,17.51326502]
[1730137218657,23.20886502,175.58,175.52,17.51326502]
[1730137219454,17.51326502,175.55,175.5,17.51326502]
[1730137221168,23.20966502,175.55,175.49,18.30277126]
[1730137221357,17.51326502,175.54,175.49,18.30277126]
[1730137221669,17.51326502,175.55,175.49,18.30277126]
[1730137222048,17.51326502,175.56,175.51,17.51326502]
[1730137222666,17.51326502,175.56,175.5,17.51326502]
[1730137222970,17.51326502,175.58,175.52,17.51326502]
[1730137223152,17.51326502,175.6,175.55,17.51326502]
[1730137223353,17.51326502,175.6,175.54,17.51326502]
[1730137223552,17.51326502,175.6,175.55,17.51326502]
[1730137223955,17.51326502,175.6,175.54,17.51326502]
[1730137224145,23.20796502,175.6,175.54,17.51326502]
[1730137224644,17.51326502,175.59,175.53,17.51326502]
[1730137225343,17.51326502,175.62,175.57,17.51326502]
[1730137225648,17.51326502,175.58,175.51,15.3503]
[1730137225849,70.0,175.56,175.47,32.86356502]
[1730137226073,17.51326502,175.52,175.47,32.86356502]
[1730137226453,23.21066502,175.52,175.47,32.86356502]
[1730137226667,17.51326502,175.54,175.48,17.51326502]
[1730137227770,23.21006502,175.54,175.48,17.51326502]
[1730137227970,17.51326502,175.53,175.48,17.51326502]
[1730137228369,17.51326502,175.53,175.47,33.71170257]
[1730137228951,17.51326502,175.5,175.47,0.84813755]
[1730137230345,17.51326502,175.49,175.47,0.84813755]
[1730137231273,23.21056502,175.53,175.47,18.36140257]
[1730137232786,23.21056502,175.53,175.44,17.51326502]
[1730137232787,17.51326502,175.5,175.44,17.51326502]
[1730137233486,17.51326502,175.53,175.47,17.51326502]
[1730137233673,17.51326502,175.51,175.46,17.51326502]
[1730137233872,17.51326502,175.52,175.46,17.51326502]
[1730137234478,17.51326502,175.53,175.47,17.51326502]
[1730137234784,17.51326502,175.52,175.47,17.51326502]
[1730137238983,17.51326502,175.53,175.47,17.51326502]
[1730137240488,23.21026502,175.53,175.47,17.51326502]
[1730137240690,17.51326502,175.56,175.5,17.51326502]
[1730137240982,39.08916502,175.59,175.53,17.51326502]
[1730137241165,23.20836502,175.59,175.53,17.51326502]
[1730137242972,21.4097,175.63,175.57,17.51326502]
[1730137243265,17.51326502,175.64,175.59,17.51326502]
[1730137243481,17.51326502,175.63,175.57,17.51326502]
[1730137245400,17.51326502,175.63,175.58,17.51326502]
[1730137245694,17.51326502,175.63,175.57,17.51326502]
[1730137245896,17.51326502,175.63,175.58,17.51326502]
[1730137246386,17.51326502,175.63,175.57,17.51326502]
[1730137246583,17.51326502,175.62,175.57,17.51326502]
[1730137248396,17.51326502,175.6,175.53,0.84782382]
[1730137248582,17.51326502,175.59,175.53,18.36108884]
[1730137248773,17.51326502,175.58,175.53,18.36108884]
[1730137249876,23.20796502,175.6,175.55,17.51326502]
[1730137250285,20.0,175.6,175.56,17.51326502]
[1730137250490,20.0,175.6,175.57,17.51326502]
[1730137250871,23.20756502,175.62,175.57,17.51326502]
[1730137251090,20.0,175.61,175.57,17.51326502]
[1730137251412,20.0,175.63,175.58,17.51326502]
[1730137251687,17.51326502,175.63,175.58,17.51326502]
[1730137252086,17.51326502,175.62,175.57,17.51326502]
[1730137252386,17.51326502,175.61,175.55,17.51326502]
[1730137252689,17.51326502,175.6,175.54,17.51326502]
[1730137252888,17.51326502,175.59,175.53,18.36801826]
[1730137253890,17.51326502,175.59,175.53,0.85475324]
[1730137253891,17.51326502,175.56,175.53,0.85475324]
[1730137254290,17.51326502,175.56,175.5,33.86966502]
[1730137254488,17.51326502,175.56,175.51,17.51326502]
[1730137254695,17.51326502,175.58,175.52,17.51326502]
[1730137255482,17.51326502,175.57,175.51,18.36811495]
[1730137255677,17.51326502,175.58,175.52,17.51326502]
[1730137256197,17.51326502,175.58,175.53,17.51326502]
[1730137257193,23.20856502,175.59,175.53,17.51326502]
[1730137257395,17.51326502,175.58,175.53,17.51326502]
[1730137259290,23.20876502,175.58,175.52,17.51326502]
[1730137261096,17.51326502,175.57,175.51,18.36811495]
[1730137261302,17.51326502,175.56,175.51,0.85484993]
[1730137261595,17.51326502,175.56,175.51,18.36811495]
[1730137261798,5.6955,175.58,175.51,18.36811495]
[1730137261799,17.51326502,175.57,175.51,18.36811495]
[1730137262878,23.20836502,175.59,175.53,17.51326502]
[1730137263085,20.0,175.58,175.54,17.51326502]
[1730137264002,17.51326502,175.6,175.55,17.51326502]
[1730137264209,23.20776502,175.61,175.56,17.51326502]
[1730137264902,23.20776502,175.61,175.55,17.51326502]
[1730137265200,17.51326502,175.61,175.56,17.51326502]
[1730137265509,17.51326502,175.58,175.53,17.51326502]
[1730137266005,17.51326502,175.57,175.52,17.51326502]
[1730137266502,17.51326502,175.58,175.52,17.51326502]
[1730137266709,17.51326502,175.59,175.54,17.51326502]
[1730137266883,17.51326502,175.6,175.54,17.51326502]
[1730137267302,23.20816502,175.6,175.54,17.51326502]
[1730137267603,17.51326502,175.59,175.54,17.51326502]
[1730137267806,23.20816502,175.6,175.54,17.51326502]
[1730137268908,17.51326502,175.58,175.53,17.51326502]
[1730137269207,17.51326502,175.57,175.51,18.36811495]
[1730137269415,23.20896502,175.57,175.51,18.36811495]
[1730137269827,17.51326502,175.57,175.51,18.36811495]
[1730137270128,17.51326502,175.56,175.51,0.85484993]
[1730137270323,17.51326502,175.57,175.52,17.51326502]
[1730137270497,17.51326502,175.6,175.54,17.51326502]
[1730137271325,5.6945,175.61,175.56,17.51326502]
[1730137271499,23.20746502,175.62,175.56,17.51326502]
[1730137271703,17.51326502,175.62,175.57,17.51326502]
[1730137273299,23.20736502,175.62,175.56,17.51326502]
[1730137274424,70.0,175.68,175.61,17.51326502]
[1730137274606,23.20566502,175.68,175.63,17.51326502]
[1730137274813,21.8632,175.69,175.63,17.51326502]
[1730137274814,45.06826502,175.69,175.63,17.51326502]
[1730137275019,38.95176502,175.69,175.63,17.51326502]
[1730137275406,38.95176502,175.69,175.64,17.51326502]
[1730137276306,38.95176502,175.69,175.63,17.51326502]
[1730137276629,5.6918,175.69,175.64,17.51326502]
[1730137276821,33.25996502,175.73,175.67,17.51326502]
[1730137277126,17.51326502,175.74,175.69,17.51326502]
[1730137277625,17.51326502,175.75,175.7,17.51326502]
[1730137277832,17.51326502,175.74,175.69,17.51326502]
[1730137279704,6.1165,175.78,175.72,17.51326502]
[1730137279909,17.51326502,175.79,175.73,17.51326502]
[1730137280236,17.51326502,175.78,175.73,17.51326502]
[1730137280401,17.51326502,175.77,175.71,17.51326502]
[1730137280822,17.51326502,175.78,175.72,17.51326502]
[1730137281013,17.51326502,175.77,175.71,17.51326502]
[1730137281835,75.6882,175.8,175.68,16.3934]
[1730137281836,17.51326502,175.76,175.7,17.51326502]
[1730137282139,17.51326502,175.74,175.68,33.90666502]
[1730137282441,17.51326502,175.74,175.69,17.51326502]
[1730137283531,23.20346502,175.74,175.69,17.51326502]
[1730137284629,23.20346502,175.74,175.68,17.51326502]
[1730137284831,17.51326502,175.73,175.67,18.36734344]
[1730137285015,5.6902,175.74,175.67,0.85407842]
[1730137285016,17.51326502,175.71,175.67,0.85407842]
[1730137285216,17.51326502,175.7,175.67,0.85407842]
[1730137285424,17.51326502,175.7,175.64,33.41616502]
[1730137286620,17.51326502,175.7,175.65,17.51326502]
[1730137286825,17.51326502,175.7,175.64,33.41616502]
[1730137286826,23.20476502,175.7,175.64,33.41616502]
[1730137287517,23.20476502,175.7,175.63,6.0207]
[1730137287518,17.51326502,175.69,175.63,17.51326502]
[1730137288120,17.51326502,175.68,175.62,17.51326502]
[1730137288319,17.51326502,175.68,175.63,17.51326502]
[1730137288520,17.51326502,175.69,175.63,18.36751797]
[1730137288825,5.6921,175.68,175.63,18.36751797]
[1730137289031,17.51326502,175.66,175.63,0.85425295]
[1730137289234,17.51326502,175.64,175.58,24.14176502]
[1730137289420,17.51326502,175.63,175.58,17.51326502]
[1730137289826,17.51326502,175.64,175.58,17.51326502]
[1730137290037,17.51326502,175.66,175.61,17.51326502]
[1730137290546,17.51326502,175.67,175.61,17.51326502]
[1730137290717,5.6915,175.7,175.63,17.51326502]
[1730137290718,20.0,175.68,175.63,17.51326502]
[1730137291234,23.20476502,175.7,175.64,17.51326502]
[1730137291533,70.0,175.73,175.69,17.51326502]
[1730137291736,87.51326502,175.76,175.69,17.51326502]
[1730137291915,17.51326502,175.75,175.69,17.51326502]
[1730137292113,17.51326502,175.74,175.68,17.51326502]
[1730137292524,23.20376502,175.74,175.68,17.51326502]
[1730137292836,17.51326502,175.73,175.67,17.51326502]
[1730137293346,17.51326502,175.72,175.66,17.51326502]
[1730137294247,17.51326502,175.72,175.64,17.51326502]
[1730137294248,17.51326502,175.69,175.64,17.51326502]
[1730137294419,17.51326502,175.69,175.63,17.51326502]
[1730137294621,23.20506502,175.69,175.63,17.51326502]
[1730137295237,17.51326502,175.67,175.62,17.51326502]
[1730137295548,17.51326502,175.68,175.62,17.51326502]
[1730137296629,5.6924,175.67,175.62,17.51326502]
[1730137297119,5.6915,175.7,175.66,17.51326502]
[1730137297325,5.6915,175.7,175.6,15.9623]
[1730137297326,17.51326502,175.68,175.62,17.51326502]
[1730137298428,17.51326502,175.64,175.6,15.9623]
[1730137298624,17.51326502,175.64,175.58,23.51426502]
[1730137299144,17.51326502,175.65,175.59,17.51326502]
[1730137299328,17.51326502,175.65,175.59,18.3676915]
[1730137299745,23.20646502,175.65,175.59,18.3676915]
[1730137300342,17.51326502,175.65,175.59,18.3676915]
[1730137300655,17.51326502,175.64,175.59,18.3676915]
[1730137301040,17.51326502,175.64,175.59,0.85442648]
[1730137301452,70.0,175.67,175.61,17.51326502]
[1730137301453,17.51326502,175.67,175.61,17.51326502]
[1730137301749,23.20576502,175.67,175.61,17.51326502]
[1730137302246,70.0,175.69,175.64,17.51326502]
[1730137302247,17.51326502,175.69,175.64,17.51326502]
[1730137303047,17.51326502,175.69,175.63,17.51326502]
[1730137303438,5.6921,175.68,175.63,17.51326502]
[1730137304226,5.6921,175.68,175.59,0.85442648]
[1730137304428,17.51326502,175.6,175.51,21.16402946]
[1730137304654,17.51326502,175.6,175.54,17.51326502]
[1730137305655,17.51326502,175.58,175.52,17.51326502]
[1730137305948,17.51326502,175.57,175.52,0.85476576]
[1730137306250,17.51326502,175.58,175.52,18.36803078]
[1730137306834,17.51326502,175.55,175.42,16.5398]